bitfinex-derivatives/quotes_ETHF0:USTF0_20240915
["timestamp","ask_amount","ask_price","bid_price","bid_amount"]
[1726394752039,4.1424,2413.9,2413.8,4.46449302]
[1726394752352,4.1424,2413.9,2413.8,3.88627126]
[1726394752537,4.1424,2413.9,2413.8,3.98389318]
[1726394752838,4.1424,2413.9,2413.8,4.46450088]
[1726394753144,4.1424,2413.9,2413.8,4.94510834]
[1726394755745,4.1424,2413.9,2413.8,4.94510753]
[1726394755945,4.1424,2413.9,2413.8,4.46450007]
[1726394756345,4.1424,2413.9,2413.8,4.94510662]
[1726394757451,4.1424,2413.9,2413.8,4.40647632]
[1726394758548,4.1424,2413.9,2413.8,4.4071626]
[1726394758744,4.1424,2413.9,2413.8,4.40716171]
[1726394759052,4.1424,2413.9,2413.8,3.34832953]
[1726394759254,4.1424,2413.9,2413.8,3.92656052]
[1726394759645,4.1424,2413.9,2413.8,2.53540967]
[1726394760153,4.1424,2413.9,2413.8,3.92655392]
[1726394760351,4.1424,2413.9,2413.8,3.01602056]
[1726394760559,4.1424,2413.9,2413.8,2.62672056]
[1726394761250,13.26449336,2413.9,2413.8,1.5394484]
[1726394761446,14.05438003,2413.9,2413.8,0.48060652]
[1726394762149,0.4142,2413.7,2413.5,0.7763]
[1726394762348,6.33648456,2413.7,2413.5,0.7763]
[1726394762548,10.47968456,2413.7,2413.5,0.7763]
[1726394762858,10.47968456,2413.7,2413.6,0.56787262]
[1726394762859,4.9423,2413.7,2413.6,0.56787262]
[1726394763150,4.9423,2413.7,2413.6,1.04852489]
[1726394763151,4.5574,2413.7,2413.6,1.04852489]
[1726394764661,4.5574,2413.7,2413.6,0.48065227]
[1726394764853,4.5574,2413.7,2413.5,1.86357216]
[1726394765160,3.622,2413.7,2413.5,1.86357216]
[1726394765347,3.622,2413.7,2413.6,0.48064973]
[1726394765748,7.7652,2413.7,2413.5,1.86357216]
[1726394765956,3.622,2413.7,2413.5,1.86357216]
[1726394766154,7.351,2413.7,2413.5,1.86357216]
[1726394766455,7.351,2413.7,2413.5,0.7763]
[1726394766656,7.351,2413.7,2413.6,0.48064654]
[1726394766852,7.351,2413.7,2413.5,0.7763]
[1726394767057,7.351,2413.7,2413.5,1.86357216]
[1726394767263,7.351,2413.7,2413.5,0.7763]
[1726394767754,3.2078,2413.7,2413.5,0.7763]
[1726394767950,7.351,2413.7,2413.5,0.7763]
[1726394768154,7.76519,2413.7,2413.5,0.7763]
[1726394770154,7.76519,2413.7,2413.5,0.3896]
[1726394770155,4.55741,2413.6,2413.5,0.3896]
[1726394770464,4.55741,2413.6,2413.4,1.48797216]
[1726394770465,4.94371,2413.6,2413.4,1.48797216]
[1726394771157,4.55743,2413.5,2413.3,1.49837216]
[1726394771361,0.41423,2413.5,2413.3,0.4111]
[1726394772755,4.1432,2413.4,2413.3,0.4111]
[1726394772956,4.5384,2413.4,2413.3,0.4111]
[1726394774260,4.5384,2413.4,2413.2,0.7702]
[1726394774461,8.16046,2413.4,2413.2,0.7702]
[1726394774870,0.3748,2413.3,2413.2,0.7702]
[1726394775158,0.3748,2413.3,2413.2,0.3898]
[1726394775463,4.5188,2413.3,2413.2,0.3898]
[1726394775664,4.93306,2413.3,2413.2,0.3898]
[1726394776164,4.144,2413.3,2413.2,0.3898]
[1726394776360,0.41425,2413.4,2413.2,0.3898]
[1726394776669,4.55825,2413.4,2413.2,0.3898]
[1726394777162,0.41425,2413.4,2413.2,0.3898]
[1726394778359,4.55825,2413.4,2413.2,0.3898]
[1726394778566,0.41425,2413.4,2413.2,0.3898]
[1726394779057,4.55825,2413.4,2413.2,0.3898]
[1726394779968,0.41425,2413.4,2413.2,0.3898]
[1726394780159,4.55825,2413.4,2413.2,0.3898]
[1726394780465,0.41425,2413.4,2413.2,0.3898]
[1726394780658,4.55825,2413.4,2413.2,0.3898]
[1726394782457,7.76605,2413.4,2413.2,0.3898]
[1726394783170,3.2078,2413.4,2413.2,0.3898]
[1726394783474,4.144,2413.3,2413.1,0.373]
[1726394783660,0.41428,2413.2,2413.1,0.373]
[1726394783863,0.82388,2413.2,2413.1,0.373]
[1726394784262,0.41431,2413.1,2412.7,1.28027216]
[1726394784471,0.41432,2413.0,2412.8,0.7806]
[1726394787980,0.41433,2412.9,2412.8,0.7806]
[1726394788275,0.41432,2413.0,2412.8,0.7806]
[1726394789263,3.2078,2413.1,2412.8,0.7806]
[1726394789264,0.41433,2412.9,2412.8,0.7806]
[1726394789465,0.41432,2413.0,2412.8,0.7806]
[1726394790176,4.144,2412.9,2412.8,0.7806]
[1726394793865,4.55833,2412.9,2412.8,0.7806]
[1726394794870,4.55833,2412.9,2412.8,0.3961]
[1726394795072,5.34353,2412.9,2412.8,0.3961]
[1726394795976,10.9292,2412.9,2412.5,0.097]
[1726394796178,10.9292,2412.9,2412.4,0.7642]
[1726394796179,3.2078,2412.7,2412.4,0.7642]
[1726394796384,0.41436,2412.8,2412.4,0.7642]
[1726394796678,0.7852,2412.9,2412.4,0.7642]
[1726394797078,0.41435,2412.8,2412.4,0.7642]
[1726394797976,0.7852,2412.9,2412.4,0.7642]
[1726394798176,1.19954,2412.9,2412.4,0.7642]
[1726394799169,3.2078,2412.7,2412.4,0.7642]
[1726394799375,3.62217,2412.7,2412.4,0.7642]
[1726394799579,0.406,2412.6,2412.4,0.7642]
[1726394800977,0.82039,2412.6,2412.4,0.7642]
[1726394801272,0.4144,2412.5,2412.4,0.7642]
[1726394801476,4.5592,2412.5,2412.4,0.3763]
[1726394801886,4.1448,2412.5,2412.4,0.3763]
[1726394802074,4.1448,2412.5,2412.4,0.7799]
[1726394803180,4.5592,2412.5,2412.4,0.7799]
[1726394803384,4.5592,2412.5,2412.4,0.3763]
[1726394803677,4.9612,2412.5,2412.4,0.3763]
[1726394804474,4.9612,2412.5,2412.1,0.3932]
[1726394804687,3.2078,2412.3,2412.1,1.1821]
[1726394810379,3.2078,2412.3,2412.1,1.59657]
[1726394810685,3.2078,2412.3,2412.1,1.1821]
[1726394811279,0.51038,2412.6,2412.1,1.59656]
[1726394811280,0.096,2412.6,2412.1,1.59656]
[1726394811477,0.096,2412.6,2412.2,0.41445]
[1726394813078,0.096,2412.6,2412.1,1.59656]
[1726394813276,0.096,2412.6,2412.1,1.1821]
[1726394813590,0.096,2412.6,2412.1,1.59656]
[1726394816789,0.096,2412.6,2412.1,1.1821]
[1726394817088,0.096,2412.6,2412.2,0.41444]
[1726394817388,0.096,2412.6,2412.1,1.59656]
[1726394818683,3.2078,2412.5,2412.1,1.59656]
[1726394823197,0.096,2412.6,2412.1,1.59656]
[1726394823492,3.2078,2412.5,2412.1,1.59656]
[1726394825085,0.096,2412.6,2412.1,1.59656]
[1726394825290,3.2078,2412.5,2412.1,1.59656]
[1726394825587,3.2078,2412.5,2412.2,0.41445]
[1726394825791,3.2078,2412.5,2412.1,1.59655]
[1726394828391,0.096,2412.6,2412.1,1.59655]
[1726394828686,3.2078,2412.5,2412.1,1.59655]
[1726394828893,3.2078,2412.5,2412.2,0.41444]
[1726394829688,0.096,2412.6,2412.2,0.41444]
[1726394830188,0.096,2412.6,2412.4,0.4144]
[1726394830383,4.088,2412.8,2412.5,0.7524]
[1726394830592,6.43261456,2412.9,2412.5,1.1284]
[1726394830896,3.71813,2412.9,2412.5,1.1284]
[1726394831282,3.3038,2412.9,2412.5,1.54279]
[1726394831488,3.3038,2412.9,2412.5,1.1284]
[1726394831682,3.3038,2412.9,2412.6,0.89511632]
[1726394831886,3.2078,2412.9,2412.6,0.41437]
[1726394832293,3.2078,2412.9,2412.6,1.50164216]
[1726394832494,3.2078,2412.9,2412.7,0.4807406]
[1726394832696,3.2078,2412.9,2412.6,1.50164216]
[1726394832893,3.2078,2412.9,2412.7,0.48073269]
[1726394833096,3.2078,2412.9,2412.6,1.50164216]
[1726394833290,3.2078,2412.9,2412.7,0.48073262]
[1726394833599,3.2078,2412.9,2412.6,1.50164216]
[1726394833795,0.096,2413.2,2412.7,0.48074065]
[1726394833996,0.096,2413.2,2412.9,0.41433]
[1726394834194,4.088,2413.3,2413.0,1.19061]
[1726394834499,3.21348456,2413.5,2413.1,0.79189]
[1726394834688,6.30368456,2413.6,2413.1,0.79189]
[1726394834994,3.5892,2413.6,2413.1,0.3776]
[1726394835196,4.00342,2413.6,2413.1,0.3776]
[1726394835399,3.2078,2413.3,2413.1,0.3776]
[1726394836590,3.2078,2413.3,2413.0,0.7763]
[1726394836790,0.3903,2413.2,2413.0,0.7763]
[1726394837299,0.4037,2413.1,2413.0,0.7763]
[1726394839499,0.4037,2413.1,2413.0,0.4028]
[1726394840586,0.818,2413.1,2412.7,0.3859]
[1726394840892,0.818,2413.1,2412.7,1.1924]
[1726394840893,3.2078,2413.0,2412.7,1.1924]
[1726394841689,0.6519,2413.1,2412.7,1.1924]
[1726394841893,3.2078,2413.0,2412.7,1.1924]
[1726394842105,0.6519,2413.1,2412.7,1.1924]
[1726394842594,0.4037,2413.1,2412.7,1.1924]
[1726394843505,3.2078,2413.0,2412.7,1.1924]
[1726394846401,3.2078,2413.0,2412.7,1.60676]
[1726394846606,3.2078,2413.0,2412.7,1.1924]
[1726394847800,3.2078,2413.0,2412.7,1.60676]
[1726394851505,3.2078,2413.0,2412.7,1.1924]
[1726394851812,0.3921,2412.9,2412.7,1.1924]
[1726394853115,0.8012,2412.9,2412.7,1.1924]
[1726394857506,0.8012,2412.9,2412.7,0.8065]
[1726394858007,3.2078,2413.0,2412.7,0.8065]
[1726394858310,3.2078,2413.0,2412.8,0.404]
[1726394860307,0.3853,2413.1,2412.8,0.404]
[1726394860506,4.0074,2413.1,2412.8,0.404]
[1726394860707,3.8414,2413.1,2412.8,0.404]
[1726394866513,4.2557,2413.1,2412.8,0.404]
[1726394867817,3.8414,2413.1,2412.8,0.404]
[1726394873428,4.2557,2413.1,2412.7,0.8065]
[1726394874315,4.2557,2413.1,2412.7,1.89377216]
[1726394874316,6.97018456,2413.1,2412.7,1.89377216]
[1726394875517,6.97018456,2413.1,2412.8,0.48073598]
[1726394875713,6.55588456,2413.1,2412.7,1.89377216]
[1726394875916,6.55588456,2413.1,2412.8,0.88813396]
[1726394876128,6.55588456,2413.1,2412.8,0.4074]
[1726394877421,6.55588456,2413.1,2412.8,1.49467216]
[1726394877630,6.55588456,2413.1,2412.8,0.4074]
[1726394877823,6.30758456,2413.1,2412.9,0.48073225]
[1726394878024,6.30758456,2413.1,2412.8,1.49467216]
[1726394878331,6.30758456,2413.1,2412.9,1.04873917]
[1726394878628,6.30758456,2413.1,2412.8,1.49467216]
[1726394878829,6.30758456,2413.1,2412.9,1.04873938]
[1726394879036,6.30758456,2413.1,2412.9,0.48072886]
[1726394879226,6.30758456,2413.1,2412.8,1.49467216]
[1726394879427,6.30758456,2413.1,2412.9,1.04873789]
[1726394879628,6.30758456,2413.1,2412.8,1.49467216]
[1726394879829,6.30758456,2413.1,2412.9,0.48073025]
[1726394880037,6.30758456,2413.1,2412.8,1.49467216]
[1726394880240,6.30758456,2413.1,2412.9,0.48073086]
[1726394880431,6.30758456,2413.1,2412.8,1.49467216]
[1726394880735,6.30758456,2413.1,2412.9,0.48073126]
[1726394880927,6.30758456,2413.1,2412.8,1.49467216]
[1726394881128,6.30758456,2413.1,2412.9,0.48073048]
[1726394881330,6.30758456,2413.1,2412.8,1.49467216]
[1726394881640,6.30758456,2413.1,2412.9,0.56801164]
[1726394881934,6.30758456,2413.1,2412.9,0.48073037]
[1726394882136,6.30758456,2413.1,2412.8,1.49467216]
[1726394882438,3.09978456,2413.1,2412.9,1.04874364]
[1726394882635,3.09978456,2413.1,2412.8,1.49467216]
[1726394882939,3.2078,2413.0,2412.9,1.04874388]
[1726394883641,5.92228456,2413.0,2412.9,1.04874388]
[1726394883941,5.92228456,2413.0,2412.9,0.48073132]
[1726394884634,5.92228456,2413.0,2412.9,1.04875356]
[1726394885029,2.71448456,2413.0,2412.9,0.56802224]
[1726394885337,5.92228456,2413.0,2412.9,1.04875914]
[1726394885538,5.92228456,2413.0,2412.9,0.56802224]
[1726394885732,5.92228456,2413.0,2412.9,1.04875716]
[1726394887642,5.92228456,2413.0,2412.9,0.48073492]
[1726394887837,5.92228456,2413.0,2412.9,1.04876425]
[1726394889841,2.71448456,2413.0,2412.9,1.04876425]
[1726394890035,5.92228456,2413.0,2412.9,1.04876425]
[1726394891541,2.71448456,2413.0,2412.9,1.04876425]
[1726394891743,5.92228456,2413.0,2412.9,1.04876425]
[1726394891944,5.92228456,2413.0,2412.8,1.49467216]
[1726394892147,5.92228456,2413.0,2412.9,0.56802618]
[1726394892440,5.92228456,2413.0,2412.9,1.04876639]
[1726394892837,5.92228456,2413.0,2412.9,0.48074021]
[1726394893033,5.92228456,2413.0,2412.9,1.04877351]
[1726394893939,5.92228456,2413.0,2412.9,0.48074021]
[1726394894442,5.92228456,2413.0,2412.9,1.04877666]
[1726394895741,5.92228456,2413.0,2412.9,0.48074021]
[1726394896048,5.92228456,2413.0,2412.9,0.56803817]
[1726394896345,5.92228456,2413.0,2412.9,1.04878626]
[1726394896942,3.2078,2413.0,2412.9,0.48074809]
[1726394897338,3.2078,2413.0,2412.8,1.48937216]
[1726394897539,2.71444276,2412.9,2412.8,1.48937216]
[1726394897746,2.71444276,2412.9,2412.8,2.05741473]
[1726394898244,2.71444276,2412.9,2412.8,2.53816482]
[1726394899635,5.92224276,2413.0,2412.8,2.53816482]
[1726394899845,5.92224276,2413.0,2412.9,1.04879266]
[1726394901253,5.92224276,2413.0,2412.9,2.13606482]
[1726394901545,5.92224276,2413.0,2412.9,1.04879266]
[1726394902144,5.92224276,2413.0,2412.9,2.13606482]
[1726394902461,5.92224276,2413.0,2412.9,2.13604722]
[1726394902748,5.92224276,2413.0,2412.9,1.05009413]
[1726394904149,3.2078,2413.0,2412.9,1.05009413]
[1726394904742,3.6206,2413.0,2412.9,1.05009413]
[1726394905051,3.6206,2413.0,2412.9,0.48206916]
[1726394905249,3.6206,2413.0,2412.9,1.05010586]
[1726394905450,3.6206,2413.0,2412.9,0.48206916]
[1726394905854,3.6206,2413.0,2412.8,1.48937216]
[1726394906153,2.713544,2412.9,2412.8,1.48937216]
[1726394906559,2.713544,2412.9,2412.8,2.05740917]
[1726394907055,2.713544,2412.9,2412.8,2.53948579]
[1726394907353,2.713544,2412.9,2412.8,2.53948391]
[1726394909150,2.713544,2412.9,2412.8,2.05740729]
[1726394909350,2.713544,2412.9,2412.8,2.53948269]
[1726394909855,5.921344,2413.0,2412.8,2.53948269]
[1726394910052,2.713544,2412.9,2412.8,1.48937216]
[1726394910261,2.713544,2412.9,2412.8,2.53949231]
[1726394912554,2.713544,2412.9,2412.8,1.97145048]
[1726394912755,2.713544,2412.9,2412.8,2.53949798]
[1726394915554,7.231544,2412.9,2412.8,1.05012582]
[1726394915855,7.231544,2412.9,2412.5,1.08727216]
[1726394915856,0.41435,2412.8,2412.5,1.08727216]
[1726394916054,5.92089666,2412.7,2412.5,1.08727216]
[1726394916356,5.9199896,2412.7,2412.6,0.5680843]
[1726394916565,5.9199896,2412.7,2412.4,2.26087216]
[1726394916759,5.9199896,2412.7,2412.5,1.0502]
[1726394916952,5.9199896,2412.7,2412.4,2.26087216]
[1726394917254,5.9199896,2412.7,2412.5,1.05019489]
[1726394917465,5.9199896,2412.7,2412.4,2.26087216]
[1726394917650,5.9199896,2412.7,2412.5,1.05021544]
[1726394917852,5.9199896,2412.7,2412.4,2.26087216]
[1726394918051,5.9199896,2412.7,2412.5,1.05020738]
[1726394918250,5.9199896,2412.7,2412.4,2.26087216]
[1726394918446,5.9199896,2412.7,2412.5,0.48211185]
[1726394918647,5.9199896,2412.7,2412.4,2.26087216]
[1726394918858,6.3343596,2412.7,2412.5,0.48211463]
[1726394919057,6.3343596,2412.7,2412.4,2.26087216]
[1726394919058,5.9199896,2412.7,2412.4,2.26087216]
[1726394919252,5.9199896,2412.7,2412.5,0.48211572]
[1726394919452,5.9199896,2412.7,2412.4,2.26087216]
[1726394920158,5.9199896,2412.7,2412.5,0.48211497]
[1726394920458,3.2078,2412.7,2412.4,2.26087216]
[1726394921059,5.9199896,2412.7,2412.4,2.26087216]
[1726394921257,5.9199896,2412.7,2412.4,1.1736]
[1726394921461,6.3343596,2412.7,2412.4,1.1736]
[1726394921662,6.7142596,2412.7,2412.4,1.1736]
[1726394922853,6.2998896,2412.7,2412.4,1.1736]
[1726394923253,3.5877,2412.7,2412.4,1.1736]
[1726394923450,6.2998896,2412.7,2412.4,1.1736]
[1726394924864,3.5877,2412.7,2412.4,1.1736]
[1726394927262,3.2078,2412.7,2412.4,1.1736]
[1726394934767,3.1265496,2412.8,2412.4,1.1736]
[1726394934969,3.2078,2412.5,2412.4,1.1736]
[1726394939064,3.1265496,2412.8,2412.4,1.1736]
[1726394939265,3.2078,2412.5,2412.4,1.1736]
[1726394947673,3.2078,2412.5,2412.4,1.65571261]
[1726394947881,3.2078,2412.5,2412.4,3.31108308]
[1726394948671,0.41435,2412.8,2412.4,3.31108308]
[1726394948970,0.41435,2412.8,2412.4,2.26087216]
[1726394949274,0.41435,2412.8,2412.5,0.48210939]
[1726394949472,0.41435,2412.8,2412.4,2.26087216]
[1726394949777,0.41435,2412.8,2412.5,0.48210845]
[1726394949979,6.3343296,2412.9,2412.4,2.67528216]
[1726394950280,6.3343296,2412.9,2412.5,1.05017884]
[1726394950578,6.3343296,2412.9,2412.4,2.26087216]
[1726394950783,6.3343296,2412.9,2412.5,0.48209971]
[1726394951080,6.3343296,2412.9,2412.4,2.26087216]
[1726394951376,6.3343296,2412.9,2412.5,1.05018925]
[1726394951577,6.3343296,2412.9,2412.4,2.26087216]
[1726394951874,6.3343296,2412.9,2412.5,1.05018802]
[1726394952178,6.3343296,2412.9,2412.4,2.26087216]
[1726394952379,6.3343296,2412.9,2412.5,1.050176]
[1726394952575,6.3343296,2412.9,2412.5,1.08727216]
[1726394952779,6.3343296,2412.9,2412.4,2.26087216]
[1726394953279,2.7121896,2412.8,2412.5,0.48210987]
[1726394953683,2.7121896,2412.8,2412.4,2.26087216]
[1726394953880,6.3343296,2412.9,2412.5,1.05019141]
[1726394954069,6.3343296,2412.9,2412.4,2.26087216]
[1726394954070,2.7121896,2412.8,2412.4,2.26087216]
[1726394954385,2.7121896,2412.8,2412.5,0.48210829]
[1726394954582,2.7121896,2412.8,2412.4,2.26087216]
[1726394954583,0.409,2412.7,2412.4,2.26087216]
[1726394954880,0.409,2412.7,2412.5,1.05018239]
[1726394955075,0.409,2412.7,2412.4,2.26087216]
[1726394955269,0.409,2412.7,2412.5,1.05019787]
[1726394955475,3.2078,2412.6,2412.4,2.26087216]
[1726394955776,3.2078,2412.6,2412.5,1.05020629]
[1726394955979,0.7949,2412.7,2412.5,0.48211828]
[1726394956180,0.7949,2412.7,2412.4,2.26087216]
[1726394956376,0.7949,2412.7,2412.5,1.05020559]
[1726394956574,0.7949,2412.7,2412.4,2.26087216]
[1726394956780,0.7949,2412.7,2412.5,1.05019801]
[1726394956981,0.7949,2412.7,2412.4,2.26087216]
[1726394957184,3.1265396,2412.8,2412.5,2.13747911]
[1726394957185,2.7121896,2412.8,2412.5,2.13747911]
[1726394957377,2.7121896,2412.8,2412.6,0.48211284]
[1726394957577,2.7121896,2412.8,2412.7,0.3981]
[1726394957777,5.9199896,2412.9,2412.7,0.3981]
[1726394958885,2.7121896,2412.8,2412.7,0.3981]
[1726394960983,2.7121896,2412.8,2412.7,0.88019397]
[1726394961179,2.7121896,2412.8,2412.7,1.6449928]
[1726394962481,2.7121896,2412.8,2412.7,1.1629]
[1726394964089,2.7121896,2412.8,2412.7,1.64500143]
[1726394964785,3.2078,2412.9,2412.7,5.46595784]
[1726394965083,3.2078,2412.9,2412.8,2.13743627]
[1726394965593,3.2078,2412.9,2412.8,1.05013933]
[1726394965786,3.2078,2412.9,2412.8,1.05013524]
[1726394966180,3.2078,2412.9,2412.8,0.48210143]
[1726394966791,3.2078,2412.9,2412.8,1.05013027]
[1726394967091,3.2078,2412.9,2412.8,0.48210143]
[1726394967387,3.2078,2412.9,2412.7,2.25017216]
[1726394967589,3.2078,2412.9,2412.8,0.48207162]
[1726394967989,3.2078,2412.9,2412.8,0.9641433]
[1726394970290,3.2078,2412.9,2412.8,0.48207162]
[1726394970985,3.2078,2412.9,2412.8,0.96414392]
[1726394971185,3.2078,2412.9,2412.8,0.96414542]
[1726394971397,3.2078,2412.9,2412.8,0.48207162]
[1726394971883,2.7121896,2413.1,2412.8,1.53217296]
[1726394972189,3.5087696,2413.2,2412.8,1.56934378]
[1726394972392,3.5087696,2413.2,2412.9,1.46435597]
[1726394972393,2.7121896,2413.2,2412.9,1.46435597]
[1726394972578,6.0159896,2413.3,2413.0,0.88015352]
[1726394972782,5.9199896,2413.3,2413.0,1.2056]
[1726394973295,3.2078,2413.3,2413.0,1.2056]
[1726394975185,3.2078,2413.3,2413.1,0.41429]
[1726394975392,3.2078,2413.3,2413.0,1.6199]
[1726394982101,3.2078,2413.3,2413.1,0.41429]
[1726394983796,10.9323096,2413.6,2413.1,0.41429]
[1726394984096,10.8363096,2413.6,2413.1,0.41429]
[1726394984288,8.12412,2413.6,2413.1,0.41429]
[1726394984696,8.12412,2413.6,2413.0,1.6199]
[1726394985598,10.8363096,2413.6,2413.0,1.6199]
[1726394985794,8.37272,2413.6,2413.0,1.6199]
[1726394987689,4.28472,2413.6,2413.0,1.6199]
[1726394988195,0.41423,2413.5,2413.0,1.2056]
[1726394988397,3.8705,2413.6,2413.0,1.2056]
[1726394988597,0.3837,2413.4,2413.0,1.61991]
[1726394988802,0.3837,2413.4,2413.0,1.2056]
[1726394988996,0.373,2413.3,2413.0,0.8079]
[1726394990807,0.373,2413.3,2413.0,0.3981]
[1726394990808,3.8292,2413.3,2413.0,0.3981]
[1726394991607,4.24347,2413.3,2413.0,0.3981]
[1726394992200,4.24347,2413.3,2412.8,0.8832]
[1726394992512,4.24347,2413.3,2412.8,0.7862]
[1726394995703,3.8292,2413.3,2412.8,0.7862]
[1726394996104,3.8292,2413.3,2412.8,1.20054]
[1726394996403,3.8292,2413.3,2412.8,2.28781216]
[1726394996707,3.8292,2413.3,2412.8,1.20054]
[1726394997310,3.8292,2413.3,2412.8,0.7862]
[1726394997606,3.8292,2413.3,2412.8,1.87347216]
[1726394998312,3.8292,2413.3,2412.8,2.28782216]
[1726395001806,3.8292,2413.3,2412.9,0.48203725]
[1726395002006,3.8292,2413.3,2412.8,2.28782216]
[1726395002208,3.8292,2413.3,2412.9,0.48203726]
[1726395002514,3.8292,2413.3,2412.8,2.28782216]
[1726395003617,4.24346,2413.3,2412.8,0.7862]
[1726395004008,6.9556496,2413.3,2412.8,0.7862]
[1726395005611,6.5413896,2413.3,2412.8,0.7862]
[1726395005909,3.1264796,2413.2,2412.7,0.392]
[1726395006119,0.41429,2413.2,2412.7,0.392]
[1726395006416,0.41429,2413.2,2412.7,1.47927216]
[1726395006417,0.3946,2413.1,2412.7,1.47927216]
[1726395006711,0.3913,2413.0,2412.7,1.47927216]
[1726395006912,3.5991,2413.0,2412.7,0.392]
[1726395007112,0.3913,2413.0,2412.7,0.392]
[1726395007312,0.3913,2413.0,2412.7,1.47927216]
[1726395007313,3.5991,2413.0,2412.7,1.47927216]
[1726395008011,3.5991,2413.0,2412.7,0.392]
[1726395008713,3.5991,2413.0,2412.7,1.47927216]
[1726395009814,4.01342,2413.0,2412.7,0.392]
[1726395010116,4.26192,2413.0,2412.7,0.392]
[1726395010316,6.9741096,2413.0,2412.7,0.392]
[1726395010916,6.9741096,2413.0,2412.6,0.7816]
[1726395011116,0.41433,2412.9,2412.6,0.7816]
[1726395011617,0.3775,2412.8,2412.6,0.7816]
[1726395014618,0.3775,2412.8,2412.5,0.3946]
[1726395014817,0.3775,2412.8,2412.6,0.3874]
[1726395015216,0.3775,2412.8,2412.7,0.3849]
[1726395016218,6.9741096,2413.0,2412.7,0.3849]
[1726395016614,6.9741096,2413.0,2412.8,0.4128]
[1726395017114,4.26192,2413.0,2412.8,0.4128]
[1726395017315,6.3112896,2413.0,2412.8,0.4128]
[1726395017521,3.5991,2413.0,2412.8,0.4128]
[1726395020123,3.2078,2413.0,2412.8,0.4128]
[1726395020427,3.2078,2413.0,2412.9,0.3831]
[1726395020911,3.5109796,2413.2,2412.9,0.3831]
[1726395021308,3.5109796,2413.2,2413.0,0.3735]
[1726395022714,0.3845,2413.2,2413.0,0.3735]
[1726395022918,6.9732596,2413.3,2413.0,0.3735]
[1726395022919,6.7246596,2413.3,2413.0,0.3735]
[1726395023117,6.7246596,2413.3,2413.1,0.3839]
[1726395023523,4.144,2413.2,2413.1,0.3839]
[1726395024221,4.55828,2413.2,2413.1,0.3839]
[1726395024925,0.41428,2413.2,2413.1,0.3839]
[1726395025227,4.55828,2413.2,2413.1,0.3839]
[1726395025716,4.144,2413.2,2413.1,0.3839]
[1726395027325,7.3518,2413.2,2413.1,0.3839]
[1726395027528,10.0639896,2413.2,2413.1,0.3839]
[1726395031422,10.4782696,2413.2,2413.1,0.3839]
[1726395033321,10.4782696,2413.2,2412.9,0.3831]
[1726395033322,0.41431,2413.0,2412.9,0.3831]
[1726395033520,0.41431,2413.0,2412.8,0.8068]
[1726395036427,3.1264996,2413.0,2412.8,0.8068]
[1726395037230,0.41431,2413.0,2412.8,0.8068]
[1726395037430,3.1264996,2413.0,2412.8,0.8068]
[1726395037826,3.5034996,2413.1,2412.8,0.8068]
[1726395038031,0.41432,2413.0,2412.8,0.8068]
[1726395038230,3.2078,2412.9,2412.8,0.8068]
[1726395042131,3.2078,2412.9,2412.8,7.50464961]
[1726395042326,0.096,2413.3,2412.9,0.41433]
[1726395042327,6.0159896,2413.3,2412.9,0.41433]
[1726395042527,3.2078,2413.3,2413.0,1.463087]
[1726395042731,3.2078,2413.3,2413.1,0.403]
[1726395042932,3.2078,2413.3,2413.1,0.7793]
[1726395044327,6.3342496,2413.3,2413.1,0.7793]
[1726395044525,3.2078,2413.3,2413.1,0.7793]
[1726395044731,5.9199896,2413.3,2413.1,0.7793]
[1726395045049,3.2078,2413.3,2413.1,0.7793]
[1726395045740,5.9199896,2413.3,2413.1,0.7793]
[1726395048329,5.9199896,2413.3,2413.0,0.4117]
[1726395048330,6.3342496,2413.3,2413.0,0.4117]
[1726395048529,6.7174496,2413.3,2413.0,1.226]
[1726395048737,2.7121896,2413.2,2413.0,1.226]
[1726395054834,6.7174496,2413.3,2413.0,1.226]
[1726395055331,2.7121896,2413.2,2413.0,1.226]
[1726395055532,6.7174496,2413.3,2413.0,1.226]
[1726395056631,2.7121896,2413.2,2413.0,1.226]
[1726395071558,5.9199896,2413.3,2413.0,1.226]
[1726395071748,5.9199896,2413.3,2413.1,0.48336823]
[1726395071951,5.9199896,2413.3,2413.0,2.31244745]
[1726395072558,5.9199896,2413.3,2413.1,0.48337038]
[1726395072753,5.9199896,2413.3,2413.0,2.31244745]
[1726395072949,5.9199896,2413.3,2413.0,1.226]
[1726395073157,5.9199896,2413.3,2413.0,2.31244745]
[1726395073747,5.9199896,2413.3,2413.0,1.226]
[1726395073951,5.9199896,2413.3,2413.0,2.31244745]
[1726395074263,5.9199896,2413.3,2413.0,1.226]
[1726395074459,5.9199896,2413.3,2413.0,2.31244745]
[1726395074659,5.9199896,2413.3,2413.0,1.226]
[1726395075166,5.9199896,2413.3,2413.0,2.31244745]
[1726395076062,5.9199896,2413.3,2413.1,0.48337023]
[1726395076355,5.9199896,2413.3,2413.0,2.31244745]
[1726395076951,5.9199896,2413.3,2413.0,1.226]
[1726395077157,5.9199896,2413.3,2413.0,2.31244745]
[1726395077557,5.9199896,2413.3,2413.0,1.226]
[1726395077963,5.9199896,2413.3,2413.0,2.31244745]
[1726395078664,5.9199896,2413.3,2413.0,1.226]
[1726395079655,5.9199896,2413.3,2413.0,2.31244745]
[1726395080354,5.9199896,2413.3,2413.1,0.48336455]
[1726395080560,5.9199896,2413.3,2413.0,2.31244745]
[1726395080867,5.9199896,2413.3,2413.1,0.48336972]
[1726395081168,5.9199896,2413.3,2413.0,2.31244745]
[1726395082966,5.9199896,2413.3,2413.1,0.48336814]
[1726395083170,5.9199896,2413.3,2413.0,2.31244745]
[1726395083369,5.9199896,2413.3,2413.1,0.48337035]
[1726395083569,5.9199896,2413.3,2413.0,2.31244745]
[1726395083771,5.9199896,2413.3,2413.1,0.48336835]
[1726395083961,5.9199896,2413.3,2413.0,2.31244745]
[1726395084156,5.9199896,2413.3,2413.1,0.48336649]
[1726395084464,5.9199896,2413.3,2413.0,2.31244745]
[1726395084668,5.9199896,2413.3,2413.1,0.48337139]